[Event "Titled Tuesday Blitz May 03 Late 2022"]
[White "Avalos Parra, Joao"]
[Black "Svicevic, Rastko"]
[WhiteFideId "3402541"]
[BlackFideId "916315"]
[WhiteElo "2173"]
[BlackElo "2132"]
[Result "1-0"]
[Round "03"]
[TimeControl "180+1"]
[Date "2022.05.03"]
[WhiteClock "0:00:04"]
[BlackClock "0:00:03"]

1. d4 {[%clk 0:03:00]}  d5 {[%clk 0:02:59]} 2. c4 {[%clk 0:02:59]}  e6 {[%clk 0:03:00]} 3. Nf3 {[%clk 0:02:59]}  c6 {[%clk 0:03:00]} 4. Nc3 {[%clk 0:02:55]}  f5 {[%clk 0:03:01]} 5. g3 {[%clk 0:02:55]}  Nf6 {[%clk 0:03:01]} 6. Bg2 {[%clk 0:02:55]}  Bd6 {[%clk 0:03:01]} 7. O-O {[%clk 0:02:55]}  O-O {[%clk 0:03:01]} 8. b3 {[%clk 0:02:55]}  Qe7 {[%clk 0:02:59]} 9. Bb2 {[%clk 0:02:53]}  Ne4 {[%clk 0:02:58]} 10. Nd2 {[%clk 0:02:49]}  Nd7 {[%clk 0:02:54]} 11. f3 {[%clk 0:02:48]}  Nxc3 {[%clk 0:02:43]} 12. Bxc3 {[%clk 0:02:37]}  dxc4 {[%clk 0:02:44]} 13. bxc4 {[%clk 0:02:35]}  e5 {[%clk 0:02:43]} 14. d5 {[%clk 0:02:34]}  cxd5 {[%clk 0:02:39]} 15. cxd5 {[%clk 0:02:33]}  Bb4 {[%clk 0:02:39]} 16. Qb3 {[%clk 0:02:30]}  Qc5+ {[%clk 0:02:37]} 17. Kh1 {[%clk 0:02:26]}  Qxc3 {[%clk 0:02:34]} 18. Rfd1 {[%clk 0:02:23]}  Qxb3 {[%clk 0:02:33]} 19. Nxb3 {[%clk 0:02:24]}  Bd6 {[%clk 0:02:19]} 20. e4 {[%clk 0:02:22]}  b6 {[%clk 0:02:17]} 21. Rac1 {[%clk 0:02:19]}  Bb7 {[%clk 0:02:15]} 22. exf5 {[%clk 0:02:19]}  Rxf5 {[%clk 0:02:14]} 23. Bh3 {[%clk 0:02:18]}  g6 {[%clk 0:02:02]} 24. Bxf5 {[%clk 0:02:12]}  gxf5 {[%clk 0:02:03]} 25. Rc6 {[%clk 0:02:11]}  Bb8 {[%clk 0:01:39]} 26. Rc2 {[%clk 0:01:54]}  Kf7 {[%clk 0:01:34]} 27. Kg2 {[%clk 0:01:48]}  Bd6 {[%clk 0:01:32]} 28. Nd2 {[%clk 0:00:42]}  Rc8 {[%clk 0:01:16]} 29. Rxc8 {[%clk 0:00:37]}  Bxc8 {[%clk 0:01:14]} 30. g4 {[%clk 0:00:38]}  fxg4 {[%clk 0:01:08]} 31. fxg4 {[%clk 0:00:39]}  Nf6 {[%clk 0:01:07]} 32. g5 {[%clk 0:00:36]}  Nxd5 {[%clk 0:00:59]} 33. Ne4 {[%clk 0:00:36]}  Ne3+ {[%clk 0:00:57]} 34. Kf3 {[%clk 0:00:31]}  Nxd1 {[%clk 0:00:44]} 35. Nxd6+ {[%clk 0:00:28]}  Ke6 {[%clk 0:00:44]} 36. Nxc8 {[%clk 0:00:24]}  Nc3 {[%clk 0:00:44]} 37. Nxa7 {[%clk 0:00:22]}  Nxa2 {[%clk 0:00:36]} 38. Nb5 {[%clk 0:00:17]}  Nb4 {[%clk 0:00:35]} 39. h4 {[%clk 0:00:16]}  Nc6 {[%clk 0:00:30]} 40. Ke4 {[%clk 0:00:13]}  Ne7 {[%clk 0:00:18]} 41. Nc7+ {[%clk 0:00:11]}  Kd7 {[%clk 0:00:13]} 42. Nb5 {[%clk 0:00:10]}  Kc6 {[%clk 0:00:12]} 43. Na3 {[%clk 0:00:09]}  Ng6 {[%clk 0:00:06]} 44. h5 {[%clk 0:00:08]}  Nf4 {[%clk 0:00:03]} 45. h6 {[%clk 0:00:08]}  Ng6 {[%clk 0:00:03]} 46. Nc4 {[%clk 0:00:04]} 1-0


[Site "https://www.chess.com"]

[Event "Titled Tuesday Blitz May 03 Late 2022"]
[White "Baches Garcia, Guillermo"]
[Black "Rosen, Eric"]
[WhiteFideId "2209764"]
[BlackFideId "2032562"]
[WhiteElo "2487"]
[BlackElo "2362"]
[Result "0-1"]
[Round "03"]
[TimeControl "180+1"]
[Date "2022.05.03"]
[WhiteClock "0:00:12"]
[BlackClock "0:00:06"]

1. e4 {[%clk 0:03:00]}  c5 {[%clk 0:02:57]} 2. Nf3 {[%clk 0:03:00]}  Nc6 {[%clk 0:02:56]} 3. d4 {[%clk 0:02:59]}  cxd4 {[%clk 0:02:54]} 4. Nxd4 {[%clk 0:03:00]}  g6 {[%clk 0:02:51]} 5. c4 {[%clk 0:02:57]}  Bg7 {[%clk 0:02:51]} 6. Nc2 {[%clk 0:02:57]}  Nf6 {[%clk 0:02:51]} 7. Nc3 {[%clk 0:02:58]}  O-O {[%clk 0:02:51]} 8. Be2 {[%clk 0:02:58]}  d6 {[%clk 0:02:51]} 9. Be3 {[%clk 0:02:55]}  a5 {[%clk 0:02:45]} 10. O-O {[%clk 0:02:53]}  a4 {[%clk 0:02:45]} 11. f3 {[%clk 0:02:52]}  Qa5 {[%clk 0:02:45]} 12. Qd2 {[%clk 0:02:45]}  Be6 {[%clk 0:02:39]} 13. Rab1 {[%clk 0:02:25]}  Nd7 {[%clk 0:02:37]} 14. Nb5 {[%clk 0:02:06]}  Qxd2 {[%clk 0:02:26]} 15. Bxd2 {[%clk 0:02:07]}  Rfc8 {[%clk 0:02:26]} 16. Rfc1 {[%clk 0:01:59]}  Nc5 {[%clk 0:02:22]} 17. Bc3 {[%clk 0:01:50]}  Bh6 {[%clk 0:02:11]} 18. Rd1 {[%clk 0:01:43]}  Ne5 {[%clk 0:02:02]} 19. Nca3 {[%clk 0:01:20]}  Ncd7 {[%clk 0:01:46]} 20. b3 {[%clk 0:01:14]}  axb3 {[%clk 0:01:45]} 21. axb3 {[%clk 0:01:15]}  f5 {[%clk 0:01:20]} 22. exf5 {[%clk 0:01:11]}  Bxf5 {[%clk 0:01:19]} 23. Ra1 {[%clk 0:01:10]}  Nc5 {[%clk 0:01:15]} 24. Nd4 {[%clk 0:01:01]}  Bd7 {[%clk 0:00:43]} 25. Nac2 {[%clk 0:00:46]}  Nc6 {[%clk 0:00:26]} 26. Kf2 {[%clk 0:00:33]}  Bg7 {[%clk 0:00:21]} 27. b4 {[%clk 0:00:20]}  Nb3 {[%clk 0:00:19]} 28. Rxa8 {[%clk 0:00:15]}  Rxa8 {[%clk 0:00:19]} 29. Nxc6 {[%clk 0:00:14]}  Bxc6 {[%clk 0:00:05]} 30. Bxg7 {[%clk 0:00:14]}  Kxg7 {[%clk 0:00:06]} 31. Nd4 {[%clk 0:00:14]}  Nxd4 {[%clk 0:00:06]} 32. Rxd4 {[%clk 0:00:15]}  Ra2 {[%clk 0:00:06]} 33. b5 {[%clk 0:00:14]}  Be8 {[%clk 0:00:05]} 34. Ke3 {[%clk 0:00:14]}  Kf6 {[%clk 0:00:05]} 35. g3 {[%clk 0:00:14]}  b6 {[%clk 0:00:06]} 36. f4 {[%clk 0:00:14]}  Bf7 {[%clk 0:00:06]} 37. h4 {[%clk 0:00:13]}  Ra3+ {[%clk 0:00:06]} 38. Rd3 {[%clk 0:00:12]}  Ra2 {[%clk 0:00:02]} 39. Rd2 {[%clk 0:00:11]}  Ra3+ {[%clk 0:00:02]} 40. Rd3 {[%clk 0:00:11]}  Ra1 {[%clk 0:00:03]} 41. Rd1 {[%clk 0:00:11]}  Ra5 {[%clk 0:00:03]} 42. Rd2 {[%clk 0:00:10]}  h6 {[%clk 0:00:03]} 43. Rd4 {[%clk 0:00:09]}  Ra3+ {[%clk 0:00:04]} 44. Rd3 {[%clk 0:00:09]}  Ra2 {[%clk 0:00:05]} 45. Rc3 {[%clk 0:00:09]}  Ra4 {[%clk 0:00:04]} 46. Kd4 {[%clk 0:00:09]}  Be6 {[%clk 0:00:04]} 47. Re3 {[%clk 0:00:08]}  Ra1 {[%clk 0:00:05]} 48. Rc3 {[%clk 0:00:08]}  Re1 {[%clk 0:00:05]} 49. Ke3 {[%clk 0:00:08]}  Ra1 {[%clk 0:00:05]} 50. Kf2 {[%clk 0:00:08]}  Ra4 {[%clk 0:00:04]} 51. g4 {[%clk 0:00:08]}  g5 {[%clk 0:00:04]} 52. fxg5+ {[%clk 0:00:07]}  hxg5 {[%clk 0:00:05]} 53. h5 {[%clk 0:00:08]}  Ra2 {[%clk 0:00:04]} 54. h6 {[%clk 0:00:07]}  Kg6 {[%clk 0:00:04]} 55. Rh3 {[%clk 0:00:07]}  Kh7 {[%clk 0:00:02]} 56. Ke3 {[%clk 0:00:07]}  Rxe2+ {[%clk 0:00:03]} 57. Kxe2 {[%clk 0:00:06]}  Bxg4+ {[%clk 0:00:03]} 58. Ke3 {[%clk 0:00:06]}  Bxh3 {[%clk 0:00:04]} 59. c5 {[%clk 0:00:07]}  dxc5 {[%clk 0:00:04]} 60. Ke4 {[%clk 0:00:08]}  Kxh6 {[%clk 0:00:04]} 61. Kd5 {[%clk 0:00:09]}  g4 {[%clk 0:00:05]} 62. Kc6 {[%clk 0:00:10]}  g3 {[%clk 0:00:05]} 63. Kxb6 {[%clk 0:00:11]}  g2 {[%clk 0:00:05]} 64. Kxc5 {[%clk 0:00:12]}  g1=Q+ {[%clk 0:00:06]} 0-1


[Site "https://www.chess.com"]

[Event "Titled Tuesday Blitz May 03 Late 2022"]
[White "Barp, Alberto"]
[Black "Kollars, Dmitrij"]
[WhiteFideId "872555"]
[BlackFideId "12909572"]
[WhiteElo "2229"]
[BlackElo "2584"]
[Result "0-1"]
[Round "03"]
[TimeControl "180+1"]
[Date "2022.05.03"]
[WhiteClock "0:02:00"]
[BlackClock "0:02:17"]

1. d4 {[%clk 0:02:55]}  Nf6 {[%clk 0:02:59]} 2. c4 {[%clk 0:02:54]}  e6 {[%clk 0:03:00]} 3. Nf3 {[%clk 0:02:54]}  b6 {[%clk 0:02:59]} 4. g3 {[%clk 0:02:54]}  Ba6 {[%clk 0:03:00]} 5. b3 {[%clk 0:02:54]}  Bb4+ {[%clk 0:03:00]} 6. Bd2 {[%clk 0:02:54]}  Be7 {[%clk 0:03:00]} 7. Bg2 {[%clk 0:02:51]}  d5 {[%clk 0:03:01]} 8. O-O {[%clk 0:02:50]}  O-O {[%clk 0:03:02]} 9. Qc2 {[%clk 0:02:50]}  c5 {[%clk 0:03:01]} 10. cxd5 {[%clk 0:02:50]}  exd5 {[%clk 0:03:00]} 11. Bc3 {[%clk 0:02:46]}  Nc6 {[%clk 0:02:58]} 12. Rd1 {[%clk 0:02:46]}  Rc8 {[%clk 0:02:55]} 13. e3 {[%clk 0:02:29]}  Ne4 {[%clk 0:02:50]} 14. Ne1 {[%clk 0:02:20]}  cxd4 {[%clk 0:02:41]} 15. exd4 {[%clk 0:02:14]}  Bf6 {[%clk 0:02:19]} 16. Bxe4 {[%clk 0:02:06]}  dxe4 {[%clk 0:02:20]} 17. Qxe4 {[%clk 0:02:04]}  Re8 {[%clk 0:02:20]} 18. Qg4 {[%clk 0:02:00]}  Be2 {[%clk 0:02:17]} 0-1


[Site "https://www.chess.com"]

[Event "Titled Tuesday Blitz May 03 Late 2022"]
[White "Mandura, Tijana"]
[Black "Melikhov, Evgeny V."]
[WhiteFideId "16500270"]
[BlackFideId "4122046"]
[WhiteElo "2169"]
[BlackElo "1931"]
[Result "1-0"]
[Round "03"]
[TimeControl "180+1"]
[Date "2022.05.03"]
[WhiteClock "0:02:01"]
[BlackClock "0:00:15"]

1. d4 {[%clk 0:03:00]}  Nf6 {[%clk 0:02:59]} 2. Bg5 {[%clk 0:03:00]}  e6 {[%clk 0:02:59]} 3. Nd2 {[%clk 0:02:57]}  h6 {[%clk 0:02:58]} 4. Bh4 {[%clk 0:02:57]}  c5 {[%clk 0:02:58]} 5. c3 {[%clk 0:02:57]}  cxd4 {[%clk 0:02:54]} 6. cxd4 {[%clk 0:02:57]}  Be7 {[%clk 0:02:54]} 7. e3 {[%clk 0:02:56]}  O-O {[%clk 0:02:53]} 8. Bd3 {[%clk 0:02:56]}  b6 {[%clk 0:02:52]} 9. Ngf3 {[%clk 0:02:56]}  Ba6 {[%clk 0:02:51]} 10. Bxa6 {[%clk 0:02:55]}  Nxa6 {[%clk 0:02:50]} 11. O-O {[%clk 0:02:56]}  d6 {[%clk 0:02:25]} 12. Rc1 {[%clk 0:02:53]}  Nh5 {[%clk 0:02:20]} 13. Bxe7 {[%clk 0:02:51]}  Qxe7 {[%clk 0:02:20]} 14. Qa4 {[%clk 0:02:52]}  Qb7 {[%clk 0:02:16]} 15. Rc6 {[%clk 0:02:48]}  Nb4 {[%clk 0:01:19]} 16. Rxd6 {[%clk 0:02:41]}  a5 {[%clk 0:01:16]} 17. Rd7 {[%clk 0:02:33]}  b5 {[%clk 0:01:09]} 18. Rxb7 {[%clk 0:02:30]}  bxa4 {[%clk 0:01:09]} 19. a3 {[%clk 0:02:30]}  Nd3 {[%clk 0:01:09]} 20. Ne5 {[%clk 0:02:23]}  Nxe5 {[%clk 0:01:02]} 21. dxe5 {[%clk 0:02:24]}  g6 {[%clk 0:01:00]} 22. g4 {[%clk 0:02:24]}  Ng7 {[%clk 0:00:59]} 23. Rc1 {[%clk 0:02:24]}  Rfb8 {[%clk 0:00:59]} 24. Rcc7 {[%clk 0:02:24]}  Rxb7 {[%clk 0:00:59]} 25. Rxb7 {[%clk 0:02:25]}  Ne8 {[%clk 0:00:55]} 26. Nc4 {[%clk 0:02:22]}  Rc8 {[%clk 0:00:53]} 27. Nd6 {[%clk 0:02:18]}  Nxd6 {[%clk 0:00:50]} 28. exd6 {[%clk 0:02:19]}  Rc1+ {[%clk 0:00:50]} 29. Kg2 {[%clk 0:02:18]}  Rd1 {[%clk 0:00:50]} 30. d7 {[%clk 0:02:18]}  Kg7 {[%clk 0:00:48]} 31. Ra7 {[%clk 0:02:18]}  Kf6 {[%clk 0:00:48]} 32. Rxa5 {[%clk 0:02:18]}  Rxd7 {[%clk 0:00:47]} 33. Rxa4 {[%clk 0:02:18]}  Rd2 {[%clk 0:00:47]} 34. b4 {[%clk 0:02:18]}  Rb2 {[%clk 0:00:47]} 35. Ra5 {[%clk 0:02:17]}  Rb3 {[%clk 0:00:39]} 36. b5 {[%clk 0:02:17]}  Ke5 {[%clk 0:00:28]} 37. a4 {[%clk 0:02:16]}  Kd5 {[%clk 0:00:27]} 38. Ra7 {[%clk 0:02:16]}  f5 {[%clk 0:00:22]} 39. gxf5 {[%clk 0:02:15]}  gxf5 {[%clk 0:00:22]} 40. Rh7 {[%clk 0:02:13]}  Rb4 {[%clk 0:00:21]} 41. Ra7 {[%clk 0:02:12]}  Kc5 {[%clk 0:00:20]} 42. Kf3 {[%clk 0:02:12]}  Kb6 {[%clk 0:00:20]} 43. Ra6+ {[%clk 0:02:11]}  Kb7 {[%clk 0:00:20]} 44. Rxe6 {[%clk 0:02:02]}  Rxa4 {[%clk 0:00:20]} 45. Rxh6 {[%clk 0:02:02]}  Rb4 {[%clk 0:00:20]} 46. Rh5 {[%clk 0:02:02]}  Rxb5 {[%clk 0:00:20]} 47. Kf4 {[%clk 0:02:03]}  Kc7 {[%clk 0:00:19]} 48. Rxf5 {[%clk 0:02:02]}  Rb2 {[%clk 0:00:19]} 49. Kg3 {[%clk 0:02:01]}  Kd6 {[%clk 0:00:19]} 50. h4 {[%clk 0:02:01]}  Ke6 {[%clk 0:00:19]} 51. Rf4 {[%clk 0:02:02]}  Rb5 {[%clk 0:00:18]} 52. Kg4 {[%clk 0:02:01]}  Rb1 {[%clk 0:00:18]} 53. h5 {[%clk 0:02:01]}  Rg1+ {[%clk 0:00:18]} 54. Kh4 {[%clk 0:02:01]}  Ke5 {[%clk 0:00:17]} 55. Rg4 {[%clk 0:02:00]}  Rh1+ {[%clk 0:00:16]} 56. Kg5 {[%clk 0:02:00]}  Ke6 {[%clk 0:00:16]} 57. Kg6 {[%clk 0:02:00]}  Ke7 {[%clk 0:00:17]} 58. h6 {[%clk 0:01:59]}  Kf8 {[%clk 0:00:17]} 59. Rf4+ {[%clk 0:01:59]}  Kg8 {[%clk 0:00:17]} 60. h7+ {[%clk 0:02:00]}  Rxh7 {[%clk 0:00:15]} 61. Rf8+ {[%clk 0:02:00]}  Kxf8 {[%clk 0:00:15]} 62. Kxh7 {[%clk 0:02:01]} 1-0


[Site "https://www.chess.com"]

[Event "Titled Tuesday Blitz May 03 Late 2022"]
[White "Burke, Paul"]
[Black "Zivkovic, Nemanja"]
[WhiteFideId "2605767"]
[BlackFideId "942154"]
[WhiteElo "1849"]
[BlackElo "2364"]
[Result "0-1"]
[Round "03"]
[TimeControl "180+1"]
[Date "2022.05.03"]
[WhiteClock "0:00:06"]
[BlackClock "0:01:44"]

1. e4 {[%clk 0:03:00]}  c5 {[%clk 0:02:51]} 2. d4 {[%clk 0:02:59]}  cxd4 {[%clk 0:02:51]} 3. c3 {[%clk 0:02:59]}  dxc3 {[%clk 0:02:52]} 4. Nxc3 {[%clk 0:02:59]}  Nc6 {[%clk 0:02:53]} 5. Nf3 {[%clk 0:02:59]}  d6 {[%clk 0:02:54]} 6. Bc4 {[%clk 0:02:59]}  a6 {[%clk 0:02:54]} 7. O-O {[%clk 0:02:57]}  Nf6 {[%clk 0:02:52]} 8. h3 {[%clk 0:02:56]}  e6 {[%clk 0:02:51]} 9. Qe2 {[%clk 0:02:56]}  b5 {[%clk 0:02:51]} 10. Bb3 {[%clk 0:02:54]}  Bd7 {[%clk 0:02:51]} 11. Rd1 {[%clk 0:02:52]}  Qb8 {[%clk 0:02:51]} 12. Bg5 {[%clk 0:02:35]}  Be7 {[%clk 0:02:51]} 13. Rac1 {[%clk 0:02:34]}  Ra7 {[%clk 0:02:47]} 14. Bxf6 {[%clk 0:02:08]}  Bxf6 {[%clk 0:02:30]} 15. a3 {[%clk 0:01:35]}  O-O {[%clk 0:02:27]} 16. Bc2 {[%clk 0:01:35]}  Rd8 {[%clk 0:02:25]} 17. Bb1 {[%clk 0:01:31]}  g6 {[%clk 0:02:21]} 18. Qd2 {[%clk 0:01:25]}  Be8 {[%clk 0:02:19]} 19. Qh6 {[%clk 0:01:19]}  Bg7 {[%clk 0:02:18]} 20. Qh4 {[%clk 0:01:16]}  Ne5 {[%clk 0:02:16]} 21. Nxe5 {[%clk 0:01:05]}  Bxe5 {[%clk 0:02:15]} 22. f4 {[%clk 0:01:04]}  Bg7 {[%clk 0:02:13]} 23. e5 {[%clk 0:00:59]}  Rad7 {[%clk 0:02:04]} 24. exd6 {[%clk 0:00:53]}  Rxd6 {[%clk 0:02:03]} 25. Rxd6 {[%clk 0:00:43]}  Rxd6 {[%clk 0:02:02]} 26. Ne4 {[%clk 0:00:41]}  Qd8 {[%clk 0:01:52]} 27. Qxd8 {[%clk 0:00:27]}  Rxd8 {[%clk 0:01:53]} 28. Nc5 {[%clk 0:00:27]}  Bxb2 {[%clk 0:01:51]} 29. Nb7 {[%clk 0:00:14]}  Bxc1 {[%clk 0:01:46]} 30. Nxd8 {[%clk 0:00:13]}  Be3+ {[%clk 0:01:46]} 31. Kf1 {[%clk 0:00:10]}  Bxf4 {[%clk 0:01:47]} 32. Nb7 {[%clk 0:00:07]}  Bc6 {[%clk 0:01:47]} 33. Nc5 {[%clk 0:00:07]}  a5 {[%clk 0:01:43]} 34. Nd3 {[%clk 0:00:06]}  Bd6 {[%clk 0:01:44]} 0-1


[Site "https://www.chess.com"]

[Event "Titled Tuesday Blitz May 03 Late 2022"]
[White "Dobre, Claudiu-Cristian"]
[Black "Koelle, Tobias"]
[WhiteFideId "1211854"]
[BlackFideId "16207378"]
[WhiteElo "2207"]
[BlackElo "2541"]
[Result "1-0"]
[Round "03"]
[TimeControl "180+1"]
[Date "2022.05.03"]
[WhiteClock "0:00:22"]
[BlackClock "0:00:27"]

1. c4 {[%clk 0:03:00]}  Nc6 {[%clk 0:02:55]} 2. d4 {[%clk 0:02:59]}  e5 {[%clk 0:02:55]} 3. dxe5 {[%clk 0:02:54]}  Nxe5 {[%clk 0:02:56]} 4. e3 {[%clk 0:02:54]}  Nf6 {[%clk 0:02:56]} 5. Nf3 {[%clk 0:02:46]}  Bb4+ {[%clk 0:02:54]} 6. Bd2 {[%clk 0:02:45]}  Bxd2+ {[%clk 0:02:51]} 7. Nbxd2 {[%clk 0:02:43]}  d6 {[%clk 0:02:51]} 8. Qc2 {[%clk 0:02:32]}  O-O {[%clk 0:02:49]} 9. Nxe5 {[%clk 0:02:19]}  dxe5 {[%clk 0:02:48]} 10. Bd3 {[%clk 0:02:19]}  c6 {[%clk 0:02:47]} 11. O-O {[%clk 0:02:17]}  Qe7 {[%clk 0:02:48]} 12. h3 {[%clk 0:02:14]}  Rd8 {[%clk 0:02:47]} 13. Rad1 {[%clk 0:02:05]}  g6 {[%clk 0:02:45]} 14. c5 {[%clk 0:02:00]}  Be6 {[%clk 0:02:42]} 15. a3 {[%clk 0:01:49]}  Kg7 {[%clk 0:02:41]} 16. b4 {[%clk 0:01:19]}  h5 {[%clk 0:02:39]} 17. Nc4 {[%clk 0:01:14]}  Bxc4 {[%clk 0:02:38]} 18. Bxc4 {[%clk 0:01:14]}  a6 {[%clk 0:02:38]} 19. Rxd8 {[%clk 0:01:13]}  Rxd8 {[%clk 0:02:36]} 20. Rd1 {[%clk 0:01:13]}  h4 {[%clk 0:02:37]} 21. Rd3 {[%clk 0:01:06]}  Rxd3 {[%clk 0:02:21]} 22. Qxd3 {[%clk 0:01:05]}  Qd7 {[%clk 0:02:22]} 23. Qxd7 {[%clk 0:01:04]}  Nxd7 {[%clk 0:02:23]} 24. e4 {[%clk 0:01:02]}  Nf8 {[%clk 0:02:17]} 25. g3 {[%clk 0:00:58]}  hxg3 {[%clk 0:02:17]} 26. fxg3 {[%clk 0:00:58]}  f5 {[%clk 0:02:18]} 27. exf5 {[%clk 0:00:58]}  gxf5 {[%clk 0:02:19]} 28. Kf2 {[%clk 0:00:56]}  Kf6 {[%clk 0:02:19]} 29. Ke3 {[%clk 0:00:56]}  Ng6 {[%clk 0:02:20]} 30. h4 {[%clk 0:00:55]}  f4+ {[%clk 0:02:18]} 31. gxf4 {[%clk 0:00:55]}  exf4+ {[%clk 0:02:19]} 32. Ke4 {[%clk 0:00:55]}  Nxh4 {[%clk 0:02:10]} 33. Kxf4 {[%clk 0:00:55]}  Ng6+ {[%clk 0:02:07]} 34. Ke4 {[%clk 0:00:55]}  Ne5 {[%clk 0:02:08]} 35. Bf1 {[%clk 0:00:55]}  Ng4 {[%clk 0:02:06]} 36. Kf4 {[%clk 0:00:47]}  Ne5 {[%clk 0:02:06]} 37. Bh3 {[%clk 0:00:46]}  Nd3+ {[%clk 0:02:04]} 38. Ke3 {[%clk 0:00:40]}  Nb2 {[%clk 0:02:03]} 39. Kd4 {[%clk 0:00:39]}  a5 {[%clk 0:01:56]} 40. Bc8 {[%clk 0:00:36]}  axb4 {[%clk 0:01:55]} 41. axb4 {[%clk 0:00:36]}  Ke7 {[%clk 0:01:54]} 42. Bxb7 {[%clk 0:00:35]}  Kd7 {[%clk 0:01:54]} 43. Ba6 {[%clk 0:00:36]}  Nd1 {[%clk 0:01:53]} 44. Be2 {[%clk 0:00:34]}  Nf2 {[%clk 0:01:53]} 45. Bf3 {[%clk 0:00:34]}  Nh3 {[%clk 0:01:53]} 46. Ke5 {[%clk 0:00:32]}  Ng5 {[%clk 0:01:54]} 47. Bg2 {[%clk 0:00:32]}  Kc7 {[%clk 0:01:54]} 48. Kf5 {[%clk 0:00:31]}  Nf7 {[%clk 0:01:54]} 49. Kf6 {[%clk 0:00:29]}  Nd8 {[%clk 0:01:51]} 50. Ke7 {[%clk 0:00:27]}  Nb7 {[%clk 0:01:49]} 51. Bf1 {[%clk 0:00:26]}  Kb8 {[%clk 0:01:25]} 52. Kd7 {[%clk 0:00:26]}  Ka7 {[%clk 0:01:25]} 53. Kc7 {[%clk 0:00:24]}  Ka8 {[%clk 0:01:24]} 54. Ba6 {[%clk 0:00:23]}  Ka7 {[%clk 0:00:48]} 55. Be2 {[%clk 0:00:18]}  Ka8 {[%clk 0:00:46]} 56. Bf1 {[%clk 0:00:19]}  Ka7 {[%clk 0:00:46]} 57. Bg2 {[%clk 0:00:19]}  Ka8 {[%clk 0:00:45]} 58. Bxc6 {[%clk 0:00:18]}  Ka7 {[%clk 0:00:46]} 59. Bg2 {[%clk 0:00:18]}  Na5 {[%clk 0:00:25]} 60. bxa5 {[%clk 0:00:19]}  Ka6 {[%clk 0:00:24]} 61. c6 {[%clk 0:00:19]}  Kxa5 {[%clk 0:00:25]} 62. Kd7 {[%clk 0:00:19]}  Kb4 {[%clk 0:00:26]} 63. c7 {[%clk 0:00:20]}  Kc5 {[%clk 0:00:26]} 64. c8=Q+ {[%clk 0:00:21]}  Kd4 {[%clk 0:00:27]} 65. Qc6 {[%clk 0:00:21]}  Ke3 {[%clk 0:00:28]} 66. Qe4+ {[%clk 0:00:21]}  Kf2 {[%clk 0:00:29]} 67. Qf3+ {[%clk 0:00:21]}  Kg1 {[%clk 0:00:30]} 68. Bh3 {[%clk 0:00:21]}  Kh2 {[%clk 0:00:27]} 69. Qg2# {[%clk 0:00:22]} 1-0


[Site "https://www.chess.com"]

[Event "Titled Tuesday Blitz May 03 Late 2022"]
[White "Donchenko, Anatoly"]
[Black "Kujawski, Adam"]
[WhiteFideId "4106091"]
[BlackFideId "1100920"]
[WhiteElo "2339"]
[BlackElo "2053"]
[Result "1-0"]
[Round "03"]
[TimeControl "180+1"]
[Date "2022.05.03"]
[WhiteClock "0:01:53"]
[BlackClock "0:00:06"]

1. Nf3 {[%clk 0:03:00]}  d5 {[%clk 0:02:59]} 2. d4 {[%clk 0:02:59]}  Bf5 {[%clk 0:02:55]} 3. c4 {[%clk 0:02:59]}  e6 {[%clk 0:02:54]} 4. Nc3 {[%clk 0:02:59]}  Nf6 {[%clk 0:02:54]} 5. Bg5 {[%clk 0:02:58]}  c6 {[%clk 0:02:52]} 6. e3 {[%clk 0:02:57]}  Be7 {[%clk 0:02:52]} 7. Rc1 {[%clk 0:02:56]}  O-O {[%clk 0:02:51]} 8. Bd3 {[%clk 0:02:56]}  Bxd3 {[%clk 0:02:50]} 9. Qxd3 {[%clk 0:02:55]}  Nbd7 {[%clk 0:02:50]} 10. O-O {[%clk 0:02:54]}  h6 {[%clk 0:02:50]} 11. Bh4 {[%clk 0:02:53]}  Re8 {[%clk 0:02:31]} 12. Rfd1 {[%clk 0:02:52]}  Nh7 {[%clk 0:02:24]} 13. Bg3 {[%clk 0:02:48]}  Ng5 {[%clk 0:02:22]} 14. Nd2 {[%clk 0:02:44]}  f5 {[%clk 0:02:14]} 15. f3 {[%clk 0:02:42]}  Rf8 {[%clk 0:02:09]} 16. e4 {[%clk 0:02:40]}  Nb6 {[%clk 0:01:18]} 17. exf5 {[%clk 0:02:34]}  exf5 {[%clk 0:01:18]} 18. c5 {[%clk 0:02:33]}  Nd7 {[%clk 0:01:14]} 19. Re1 {[%clk 0:02:32]}  f4 {[%clk 0:00:53]} 20. Bf2 {[%clk 0:02:31]}  Bf6 {[%clk 0:00:51]} 21. Nf1 {[%clk 0:02:27]}  Qc7 {[%clk 0:00:47]} 22. Re2 {[%clk 0:02:26]}  Rae8 {[%clk 0:00:47]} 23. Rce1 {[%clk 0:02:26]}  Rxe2 {[%clk 0:00:47]} 24. Qxe2 {[%clk 0:02:25]}  Kh8 {[%clk 0:00:39]} 25. b4 {[%clk 0:02:23]}  b6 {[%clk 0:00:36]} 26. Qc2 {[%clk 0:02:17]}  bxc5 {[%clk 0:00:36]} 27. bxc5 {[%clk 0:02:16]}  Qa5 {[%clk 0:00:35]} 28. Ne2 {[%clk 0:02:13]}  Ne6 {[%clk 0:00:26]} 29. Rb1 {[%clk 0:02:10]}  Rb8 {[%clk 0:00:25]} 30. Rxb8+ {[%clk 0:02:07]}  Nxb8 {[%clk 0:00:26]} 31. Qf5 {[%clk 0:02:06]}  Nd8 {[%clk 0:00:13]} 32. Qc8 {[%clk 0:02:03]}  Na6 {[%clk 0:00:12]} 33. Nxf4 {[%clk 0:02:02]}  Qxa2 {[%clk 0:00:12]} 34. Nh5 {[%clk 0:02:00]}  Be7 {[%clk 0:00:08]} 35. Qd7 {[%clk 0:01:55]}  Bg5 {[%clk 0:00:06]} 36. Qxg7# {[%clk 0:01:53]} 1-0


[Site "https://www.chess.com"]